bitfinex/quotes_BTCUSD_20240823
["timestamp","ask_amount","ask_price","bid_price","bid_amount"]
[1724414593955,0.99380289,60910.0,60909.0,1.12156122]
[1724414595794,0.98830289,60910.0,60909.0,1.12156122]
[1724414597076,0.99020289,60910.0,60909.0,1.44991922]
[1724414598055,0.99020289,60910.0,60909.0,1.4455514]
[1724414598683,0.99020289,60910.0,60909.0,1.46351807]
[1724414598900,0.99020289,60910.0,60909.0,1.4455514]
[1724414599331,0.99020289,60910.0,60909.0,1.13516026]
[1724414599532,0.99570289,60910.0,60909.0,1.0171934]
[1724414600136,0.99020289,60910.0,60909.0,1.0171934]
[1724414601120,0.99020289,60910.0,60909.0,1.4086514]
[1724414601307,0.90700289,60910.0,60909.0,1.4086514]
[1724414602090,0.90700289,60910.0,60909.0,1.4906514]
[1724414602276,0.90700289,60910.0,60909.0,1.4086514]
[1724414609870,0.98920289,60910.0,60909.0,1.0171934]
[1724414610294,0.98920289,60910.0,60909.0,0.6888354]
[1724414610497,0.98370289,60910.0,60909.0,0.6888354]
[1724414611185,0.98370289,60910.0,60909.0,1.0171934]
[1724414611385,0.98370289,60910.0,60909.0,0.6888354]
[1724414611806,0.98370289,60910.0,60909.0,1.0171934]
[1724414612017,0.98370289,60910.0,60909.0,0.6888354]
[1724414612856,0.98370289,60910.0,60909.0,1.0171934]
[1724414613079,0.98370289,60910.0,60909.0,0.6888354]
[1724414613286,0.98370289,60910.0,60909.0,1.0171934]
[1724414614126,0.90700289,60910.0,60909.0,1.0171934]
[1724414614554,0.90700289,60910.0,60909.0,1.3455514]
[1724414617170,0.881255,60910.0,60909.0,1.3455514]
[1724414619641,0.881255,60910.0,60909.0,1.0171934]
[1724414620075,0.881255,60910.0,60909.0,1.3455514]
[1724414620700,0.881255,60910.0,60909.0,1.4067514]
[1724414621509,0.881255,60910.0,60909.0,1.4838514]
[1724414621710,0.881255,60910.0,60909.0,1.4067514]
[1724414627137,0.90700292,60910.0,60909.0,1.4067514]
[1724414628795,0.90700292,60910.0,60909.0,1.4863514]
[1724414640797,0.90700292,60910.0,60909.0,1.4067514]
[1724414641029,0.90700292,60910.0,60909.0,1.4875514]
[1724414645542,0.90700292,60910.0,60909.0,1.1591934]
[1724414645946,0.90700292,60910.0,60909.0,1.4875514]
[1724414647008,0.90700292,60910.0,60909.0,1.4067514]
[1724414648748,0.90700292,60910.0,60909.0,1.4858514]
[1724414649555,0.90700292,60910.0,60909.0,1.59779421]
[1724414651350,0.90700292,60910.0,60909.0,1.62348271]
[1724414651548,0.90700292,60910.0,60909.0,1.59779421]
[1724414651750,0.90700292,60910.0,60909.0,1.62348249]
[1724414651950,0.90700292,60910.0,60909.0,1.59779421]
[1724414652153,0.90700292,60910.0,60909.0,1.62348276]
[1724414652353,0.90700292,60910.0,60909.0,1.59779421]
[1724414653504,0.881255,60910.0,60909.0,1.59779421]
[1724414653750,0.90700168,60910.0,60909.0,1.59779421]
[1724414654721,0.90700168,60910.0,60909.0,1.62348247]
[1724414655443,0.90700168,60910.0,60909.0,1.92615221]
[1724414655651,0.90700168,60910.0,60909.0,1.62348221]
[1724414655947,0.90700168,60910.0,60909.0,1.95184021]
[1724414657978,0.90700168,60910.0,60909.0,1.43243941]
[1724414657979,0.98360168,60910.0,60909.0,1.43243941]
[1724414658311,0.98360168,60910.0,60909.0,1.4067514]
[1724414659024,0.90700168,60910.0,60909.0,1.4067514]
[1724414659661,0.90700168,60910.0,60909.0,1.43244051]
[1724414660460,0.90700168,60910.0,60909.0,1.45040651]
[1724414660665,0.90700168,60910.0,60909.0,1.4067514]
[1724414660824,0.90700168,60910.0,60909.0,1.4247176]
[1724414661024,0.90700168,60910.0,60909.0,1.42471739]
[1724414661233,0.90700168,60910.0,60909.0,1.5623486]
[1724414662875,0.90700168,60910.0,60909.0,1.6390486]
[1724414663506,0.90700168,60910.0,60909.0,1.75137849]
[1724414663954,0.90700168,60910.0,60909.0,1.75137649]
[1724414664166,0.90700168,60910.0,60909.0,2.06740465]
[1724414666228,0.90700168,60910.0,60909.0,2.06740526]
[1724414667279,0.98390168,60910.0,60909.0,1.66234726]
[1724414667509,0.98390168,60910.0,60909.0,1.52471689]
[1724414669997,0.90700168,60910.0,60909.0,1.52471689]
[1724414670214,0.90700168,60910.0,60909.0,1.6366597]
[1724414671314,0.90700168,60910.0,60909.0,1.61869421]
[1724414671530,0.90700168,60910.0,60909.0,1.63666104]
[1724414671736,0.90700168,60910.0,60909.0,1.71876104]
[1724414673006,0.90700168,60910.0,60909.0,1.74444933]
[1724414673425,0.90700168,60910.0,60909.0,1.744449]
[1724414673874,0.90700168,60910.0,60909.0,1.74444937]
[1724414674485,0.90700168,60910.0,60909.0,1.74444817]
[1724414677768,0.90700168,60910.0,60909.0,1.74444753]
[1724414677976,0.90700168,60910.0,60909.0,1.7187598]
[1724414678184,0.90700168,60910.0,60909.0,1.74444786]
[1724414680574,0.90700168,60910.0,60909.0,1.7187598]
[1724414680983,0.90700168,60910.0,60909.0,1.7444483]
[1724414681187,0.90700168,60910.0,60909.0,1.74444874]
[1724414681393,0.90700168,60910.0,60909.0,1.74444826]
[1724414681593,0.90700168,60910.0,60909.0,1.74444783]
[1724414682947,0.90700168,60910.0,60909.0,1.63665981]
[1724414686063,0.90700168,60910.0,60909.0,1.66234796]
[1724414686524,0.90700168,60910.0,60909.0,1.66234816]
[1724414686712,0.90700168,60910.0,60909.0,1.73744816]
[1724414687148,0.90700168,60910.0,60909.0,1.73744826]
[1724414687770,0.90700168,60910.0,60909.0,1.71175981]
[1724414688066,0.90700168,60910.0,60909.0,1.73744823]
[1724414688313,0.90700168,60910.0,60909.0,1.73744838]
[1724414689107,0.90700168,60910.0,60909.0,2.06580638]
[1724414689638,0.90700168,60910.0,60909.0,2.02215221]
[1724414689839,0.90700168,60910.0,60909.0,1.71175995]
[1724414690045,0.90700168,60910.0,60909.0,1.73744794]
[1724414690254,0.90700168,60910.0,60909.0,2.06580594]
[1724414691775,0.90700168,60910.0,60909.0,2.04011766]
[1724414691987,0.90700168,60910.0,60909.0,2.06580515]
[1724414692195,0.90700168,60910.0,60909.0,2.0631278]
[1724414692416,0.90700168,60910.0,60909.0,2.04011766]
[1724414692616,0.90700168,60910.0,60909.0,2.06580515]
[1724414695314,0.90700168,60910.0,60909.0,2.06580478]
[1724414697562,0.90700168,60910.0,60909.0,2.13973124]
[1724414698107,0.90700168,60910.0,60909.0,2.46808924]
[1724414698310,0.90700168,60910.0,60909.0,2.31796002]
[1724414698518,0.90700168,60910.0,60909.0,2.09606898]
[1724414698731,0.90700168,60910.0,60909.0,2.50381868]
[1724414698943,0.90700168,60910.0,60909.0,2.13971979]
[1724414699350,0.90700168,60910.0,60909.0,2.06580302]
[1724414701616,0.90700168,60910.0,60909.0,2.02215221]
[1724414701822,0.90700168,60910.0,60909.0,2.11507634]
[1724414702028,0.90700168,60910.0,60909.0,2.06580303]
[1724414702324,0.90700168,60910.0,60909.0,1.95386022]
[1724414702541,0.90700168,60910.0,60909.0,2.06580303]
[1724414704425,0.90700168,60910.0,60909.0,2.02215221]
[1724414704625,0.90700168,60910.0,60909.0,2.06580496]
[1724414706975,0.90700168,60910.0,60909.0,1.87876215]
[1724414707153,0.90700168,60910.0,60909.0,1.99070496]
[1724414708702,0.90700168,60910.0,60909.0,1.97570496]
[1724414711276,0.90700168,60910.0,60909.0,1.97570476]
[1724414713137,0.90700168,60910.0,60909.0,2.10577963]
[1724414713562,0.90700168,60910.0,60909.0,2.1057769]
[1724414714389,0.90700168,60910.0,60909.0,2.10577611]
[1724414714593,0.90700168,60910.0,60909.0,2.105775]
[1724414715206,0.90700168,60910.0,60909.0,2.05650286]
[1724414715414,0.90700168,60910.0,60909.0,2.10577389]
[1724414717291,0.90700168,60910.0,60909.0,2.05650286]
[1724414717495,0.90700168,60910.0,60909.0,2.10577438]
[1724414717708,0.90700168,60910.0,60909.0,2.08780979]
[1724414717913,0.90700168,60910.0,60909.0,2.08008824]
[1724414718115,0.90700168,60910.0,60909.0,2.05650266]
[1724414718708,0.90700168,60910.0,60909.0,2.49450535]
[1724414720321,0.90700168,60910.0,60909.0,2.49450364]
[1724414721166,0.90700168,60910.0,60909.0,2.47653913]
[1724414721379,0.90700168,60910.0,60909.0,2.49450355]
[1724414721794,0.90700168,60910.0,60909.0,2.49450338]
[1724414722006,0.90700168,60910.0,60909.0,2.13040746]
[1724414723053,0.90700168,60910.0,60909.0,2.49450339]
[1724414723296,0.90700168,60910.0,60909.0,2.54376173]
[1724414723652,0.90700168,60910.0,60909.0,2.74895477]
[1724414723869,0.90700168,60910.0,60909.0,2.42059677]
[1724414724871,0.90700168,60910.0,60909.0,2.43292502]
[1724414725271,0.90700168,60910.0,60909.0,2.55605239]
[1724414725423,0.90700168,60910.0,60909.0,2.53142323]
[1724414725767,0.90700168,60910.0,60909.0,2.43292502]
[1724414726312,0.90700168,60910.0,60909.0,2.53142323]
[1724414726514,0.90700168,60910.0,60909.0,2.49340857]
[1724414726761,0.90700168,60910.0,60909.0,2.82176657]
[1724414727057,0.90700168,60910.0,60909.0,2.49340857]
[1724414727508,0.90700168,60910.0,60909.0,2.8217572]
[1724414727735,0.90700168,60910.0,60909.0,2.39491036]
[1724414727940,0.90700168,60910.0,60909.0,2.43290284]
[1724414728555,0.90700168,60910.0,60909.0,2.4026104]
[1724414729741,0.90700168,60910.0,60909.0,2.37692569]
[1724414729915,0.90700168,60910.0,60909.0,2.70528369]
[1724414730642,0.90700168,60910.0,60909.0,2.73096765]
[1724414730851,0.90700168,60910.0,60909.0,2.77461494]
[1724414731055,0.90700168,60910.0,60909.0,2.89772528]
[1724414732456,0.90700168,60910.0,60909.0,2.42286951]
[1724414732659,0.90700168,60910.0,60909.0,2.91001512]
[1724414732860,0.881255,60910.0,60909.0,2.93401512]
[1724414733065,0.881255,60910.0,60909.0,2.81293242]
[1724414733776,0.881255,60910.0,60909.0,3.14329042]
[1724414734227,0.881255,60910.0,60909.0,3.1432895]
[1724414734436,0.90699742,60910.0,60909.0,3.1432895]
[1724414734656,0.90699742,60910.0,60909.0,2.83497865]
[1724414734861,0.90699742,60910.0,60909.0,2.82725822]
[1724414735065,0.90699742,60910.0,60909.0,2.81493017]
[1724414735267,0.90699742,60910.0,60909.0,2.80693017]
[1724414735625,0.90699742,60910.0,60909.0,2.82093017]
[1724414736072,0.90699742,60910.0,60909.0,2.81293017]
[1724414737309,0.90699742,60910.0,60909.0,2.80896756]
[1724414737453,0.90699742,60910.0,60909.0,2.82491898]
[1724414738619,0.90699742,60910.0,60909.0,2.82291898]
[1724414738950,0.90699742,60910.0,60909.0,2.80891898]
[1724414739212,0.90699742,60910.0,60909.0,2.79691898]
[1724414739355,0.90699742,60910.0,60909.0,2.81091898]
[1724414739882,0.90699742,60910.0,60909.0,2.78723502]
[1724414740094,0.85053335,60910.0,60909.0,2.80123502]
[1724414740291,0.83953335,60910.0,60909.0,2.89953304]
[1724414740496,0.67865175,60910.0,60909.0,2.80123502]
[1724414740696,0.45891891,60910.0,60909.0,2.86419368]
[1724414741051,0.00904201,60923.0,60918.0,1.867905]
[1724414741258,0.00904201,60923.0,60918.0,2.40528593]
[1724414742291,0.00904201,60923.0,60922.0,1.477296]
[1724414742501,0.00904201,60923.0,60922.0,2.05397693]
[1724414743736,0.00904201,60923.0,60922.0,2.06192988]
[1724414743961,0.00904201,60923.0,60922.0,1.98607862]
[1724414744162,0.08744201,60923.0,60922.0,1.79983632]
[1724414744378,0.08744201,60923.0,60922.0,1.92515288]
[1724414744588,0.08744201,60923.0,60922.0,1.9251575]
[1724414745008,0.08744201,60923.0,60922.0,1.9391575]
[1724414745222,0.20488482,60923.0,60922.0,0.06023529]
[1724414745437,0.36902582,60923.0,60922.0,0.03595295]
[1724414745656,0.69730882,60923.0,60922.0,0.03595295]
[1724414745869,0.69730882,60923.0,60922.0,0.028]
[1724414745870,1.02559182,60923.0,60922.0,0.028]
[1724414746090,1.02559182,60923.0,60922.0,0.014]
[1724414746298,0.492441,60921.0,60920.0,0.00624043]
[1724414746504,0.0833,60918.0,60913.0,0.164167]
[1724414746703,0.0833,60916.0,60913.0,0.164167]
[1724414746976,0.328294,60921.0,60911.0,0.00644001]
[1724414746977,0.0055,60913.0,60911.0,0.00644001]
[1724414747225,0.0055,60912.0,60911.0,0.00644001]
[1724414747435,0.0833,60912.0,60910.0,0.164176]
[1724414747658,0.0055,60911.0,60910.0,0.17066829]
[1724414747859,0.0888,60911.0,60910.0,0.164176]
[1724414748281,0.0888,60911.0,60908.0,0.328361]
[1724414748424,0.11454671,60911.0,60909.0,0.264178]
[1724414748623,0.0833,60910.0,60909.0,0.264178]
[1724414749421,0.0888,60910.0,60909.0,0.264178]
[1724414749847,0.0888,60910.0,60908.0,0.00629718]
[1724414750046,0.0888,60910.0,60907.0,0.328367]
[1724414750246,0.0888,60910.0,60909.0,0.001]
[1724414750626,0.0888,60910.0,60908.0,0.164181]
[1724414750831,0.0888,60910.0,60909.0,0.18825121]
[1724414752504,0.0898,60910.0,60909.0,0.18825121]
[1724414752716,0.0888,60910.0,60909.0,0.18825121]
[1724414752908,0.0888,60910.0,60909.0,0.02407221]
[1724414753085,0.0918,60910.0,60909.0,0.02407221]
[1724414753281,0.0918,60910.0,60908.0,0.16418]
[1724414753482,0.0888,60910.0,60908.0,0.16418]
[1724414753682,0.0918,60910.0,60909.0,0.18825121]
[1724414754491,0.0918,60910.0,60909.0,0.02407221]
[1724414754736,0.255976,60910.0,60909.0,0.02407221]
[1724414754995,0.0055,60908.0,60905.0,0.164189]
[1724414755199,0.0873,60907.0,60905.0,0.164189]
[1724414755533,0.0873,60907.0,60906.0,0.492561]
[1724414756956,0.0873,60907.0,60906.0,0.164187]
[1724414757156,0.0873,60907.0,60906.0,0.166187]
[1724414757357,0.0873,60907.0,60906.0,0.169187]
[1724414758508,0.0873,60907.0,60906.0,0.19328472]
[1724414760816,0.0873,60907.0,60906.0,0.52165872]
[1724414761018,0.02574671,60911.0,60910.0,0.164176]
[1724414761250,0.02574671,60911.0,60910.0,0.1882397]
[1724414761455,0.02574671,60911.0,60910.0,0.5165927]
[1724414761664,0.02574671,60911.0,60910.0,1.00894868]
[1724414761867,0.02574671,60911.0,60910.0,1.40050168]
[1724414762270,0.02674671,60911.0,60910.0,1.40050168]
[1724414762757,0.02874671,60911.0,60910.0,1.40050168]
[1724414762960,0.02874671,60911.0,60910.0,1.57800168]
[1724414763595,0.02574671,60911.0,60910.0,1.50050168]
[1724414764217,0.02674671,60911.0,60910.0,1.50050168]
[1724414764419,0.02574671,60911.0,60910.0,1.50050168]
[1724414764637,0.02574671,60911.0,60910.0,1.50487024]
[1724414765665,0.02574671,60911.0,60910.0,1.59872615]
[1724414765894,0.02674671,60911.0,60910.0,1.93707915]
[1724414766108,0.02674671,60911.0,60910.0,1.94807915]
[1724414766336,0.02674671,60911.0,60910.0,1.94807975]
[1724414768510,0.02674671,60911.0,60910.0,2.22779671]
[1724414769733,0.02674671,60911.0,60910.0,2.22778938]
[1724414770873,0.00904201,60923.0,60922.0,0.88632]
[1724414771083,0.00904201,60923.0,60922.0,1.05032298]
[1724414771319,0.00904201,60923.0,60922.0,1.70689898]
[1724414771524,0.00904201,60923.0,60922.0,1.78199898]
[1724414771730,0.00904201,60923.0,60922.0,1.89992852]
[1724414772594,0.01004201,60923.0,60922.0,1.89992852]
[1724414773034,0.01104201,60923.0,60922.0,1.88999898]
[1724414773244,0.00904201,60923.0,60922.0,1.89992664]
[1724414773454,0.01004201,60923.0,60922.0,1.922929]
[1724414773920,0.01004201,60923.0,60922.0,1.95342202]
[1724414777218,0.01004201,60923.0,60922.0,1.95779058]
[1724414778014,0.0819,60933.0,60922.0,1.79364658]
[1724414778222,0.0819,60933.0,60930.0,1.212457]
[1724414778426,0.0819,60933.0,60930.0,1.40035364]
[1724414778746,0.03478172,60931.0,60930.0,1.40035364]
[1724414779731,0.03478172,60931.0,60930.0,1.40135364]
[1724414780719,0.03478172,60931.0,60930.0,1.33775364]
[1724414781767,0.03478172,60931.0,60930.0,1.34712729]
[1724414782130,0.03478172,60931.0,60930.0,1.40842729]
[1724414786176,0.03478172,60931.0,60930.0,1.41279492]
[1724414788381,0.03478172,60931.0,60930.0,1.43070533]
[1724414788606,0.03478172,60931.0,60930.0,1.52463732]
[1724414788826,0.03478172,60931.0,60930.0,1.5425475]
[1724414789597,0.03478172,60931.0,60930.0,1.53817987]
[1724414792730,0.03478172,60931.0,60930.0,1.63817987]
[1724414793426,0.03478172,60931.0,60930.0,1.6381786]
[1724414793909,0.03478172,60931.0,60930.0,1.62026969]
[1724414794130,0.03478172,60931.0,60930.0,1.63817815]
[1724414794596,0.03478172,60931.0,60930.0,1.96642315]
[1724414794814,0.03478172,60931.0,60930.0,2.04692315]
[1724414795019,0.03478172,60931.0,60930.0,2.07259974]
[1724414795446,0.03478172,60931.0,60930.0,2.07159974]
[1724414795668,0.03478172,60931.0,60930.0,2.06859974]
[1724414795822,0.03478172,60931.0,60930.0,2.06959974]
[1724414796021,0.03478172,60931.0,60930.0,2.07259974]
[1724414796223,0.03478172,60931.0,60930.0,2.07159974]
[1724414796430,0.03478172,60931.0,60930.0,2.08559974]
[1724414796807,0.03478172,60931.0,60930.0,2.07159974]
[1724414797011,0.03478172,60931.0,60930.0,2.08259974]
[1724414797383,0.03478172,60931.0,60930.0,2.06859974]
[1724414798020,0.03478172,60931.0,60930.0,2.06860027]
[1724414798444,0.03478172,60931.0,60930.0,2.08260027]
[1724414798833,0.03478172,60931.0,60930.0,2.06860027]
[1724414799265,0.03478172,60931.0,60930.0,2.08260027]
[1724414799447,0.03478172,60931.0,60930.0,2.09660027]
[1724414799651,0.03478172,60931.0,60930.0,2.08260027]
[1724414799848,0.03478172,60931.0,60930.0,2.06860027]
[1724414800047,0.03478172,60931.0,60930.0,2.09660583]
[1724414803338,0.03478172,60931.0,60930.0,2.07869061]
[1724414803573,0.03478172,60931.0,60930.0,2.09660717]
[1724414804182,0.0048091,60937.0,60936.0,1.476958]
[1724414804389,0.0048091,60937.0,60936.0,1.93809586]
[1724414804593,0.0048091,60937.0,60936.0,2.06216928]
[1724414805380,0.0048091,60937.0,60936.0,2.08746056]
[1724414805831,0.0048091,60937.0,60936.0,2.11046056]
[1724414806004,0.0048091,60937.0,60936.0,2.12146056]
[1724414806758,0.0048091,60937.0,60936.0,2.12145465]
[1724414807951,0.0048091,60937.0,60936.0,2.44966765]
[1724414808575,0.03054177,60937.0,60936.0,2.44966765]
[1724414808950,0.03054177,60937.0,60936.0,2.12145465]
[1724414809376,0.03054177,60937.0,60936.0,2.10916337]
[1724414810222,0.03054177,60937.0,60936.0,2.09125055]
[1724414810422,0.03054177,60937.0,60936.0,2.10915467]
[1724414810592,0.03054177,60937.0,60936.0,2.11352264]
[1724414812143,0.03054177,60937.0,60936.0,2.03762264]
[1724414812351,0.03054177,60937.0,60936.0,1.50876724]
[1724414812539,0.03054177,60937.0,60936.0,1.59493589]
[1724414812540,0.11124177,60937.0,60936.0,1.59493589]
[1724414813558,0.11124177,60937.0,60936.0,1.59494193]
[1724414814000,0.11124177,60937.0,60936.0,1.5949415]
[1724414814216,0.11124177,60937.0,60936.0,1.59057353]
[1724414815436,0.03054177,60937.0,60936.0,1.59057353]
[1724414815639,0.03054177,60937.0,60936.0,1.65187353]
[1724414816426,0.03054177,60937.0,60936.0,1.54003113]
[1724414816827,0.03054177,60937.0,60936.0,1.54002208]
[1724414817884,0.03054177,60937.0,60936.0,1.61612208]
[1724414818093,0.03054177,60937.0,60936.0,1.94433508]
[1724414818318,0.03054177,60937.0,60936.0,1.64179657]
[1724414818735,0.03054177,60937.0,60936.0,1.97000957]
[1724414819269,0.03054177,60937.0,60936.0,1.98228643]
[1724414820066,0.00904201,60938.0,60936.0,1.98228643]
[1724414820067,0.00904201,60938.0,60937.0,1.476931]
[1724414820292,0.00904201,60938.0,60937.0,1.82751579]
[1724414820491,0.00904201,60938.0,60937.0,1.8654618]
[1724414820720,0.00904201,60938.0,60937.0,1.88334543]
[1724414820922,0.00904201,60938.0,60937.0,1.88334465]
[1724414821337,0.00904201,60938.0,60937.0,1.89334465]
[1724414821550,0.00904201,60938.0,60937.0,1.90534465]
[1724414821759,0.0002,60939.0,60938.0,1.618409]
[1724414821969,0.0002,60939.0,60938.0,1.93824084]
[1724414822173,0.0002,60939.0,60938.0,1.95881415]
[1724414822920,1e-08,60944.0,60943.0,2.133137]
[1724414823138,0.0833,60959.0,60943.0,2.133137]
[1724414823139,0.0888,60959.0,60958.0,0.164047]
[1724414823383,0.0888,60959.0,60958.0,0.492141]
[1724414823584,0.0888,60959.0,60958.0,1.00541171]
[1724414823788,0.0833,60959.0,60958.0,1.35138207]
[1724414823993,0.0833,60959.0,60958.0,1.02328807]
[1724414824605,0.0888,60959.0,60958.0,0.51331473]
[1724414824814,0.0888,60959.0,60958.0,0.18522073]
[1724414825020,0.0888,60959.0,60958.0,0.51331473]
[1724414825426,0.0888,60959.0,60958.0,0.85288727]
[1724414826050,0.0888,60959.0,60958.0,0.52479327]
[1724414826461,0.0888,60959.0,60958.0,0.52779327]
[1724414826668,0.0888,60959.0,60958.0,0.52279327]
[1724414826875,0.0888,60959.0,60958.0,0.84788727]
[1724414827089,0.0908,60959.0,60958.0,0.51979327]
[1724414827475,0.0888,60959.0,60958.0,0.51979327]
[1724414827678,0.0908,60959.0,60958.0,0.51979327]
[1724414828289,0.0908,60959.0,60958.0,0.84788727]
[1724414828465,0.11652923,60959.0,60958.0,0.84788727]
[1724414828988,0.11652923,60959.0,60958.0,1.01189025]
[1724414828989,0.11102923,60959.0,60958.0,1.01189025]
[1724414829529,0.10902923,60959.0,60958.0,1.01189025]
[1724414829869,0.11002923,60959.0,60958.0,1.01189025]
[1724414830227,0.10906923,60959.0,60958.0,1.01189025]
[1724414830525,0.10906923,60959.0,60958.0,1.01489025]
[1724414830664,0.10906923,60959.0,60958.0,1.01189025]
[1724414830916,0.10906923,60959.0,60958.0,1.01689025]
[1724414831117,0.10906923,60959.0,60958.0,1.02189025]
[1724414831313,0.10906923,60959.0,60958.0,1.01189025]
[1724414831698,0.10906923,60959.0,60958.0,1.01889025]
[1724414833398,0.10906923,60959.0,60958.0,1.02489025]
[1724414837437,0.02596923,60959.0,60958.0,1.02489025]
[1724414838251,0.02592923,60959.0,60958.0,1.02489025]
[1724414839107,0.02592923,60959.0,60958.0,1.35298425]
[1724414839321,0.02592923,60959.0,60958.0,1.54254545]
[1724414839533,0.02592923,60959.0,60958.0,1.56045361]
[1724414840704,0.02592923,60959.0,60958.0,1.56045852]
[1724414840904,0.02592923,60959.0,60958.0,1.46474545]
[1724414843793,0.02592923,60959.0,60958.0,1.35298425]
[1724414846537,0.02592923,60959.0,60958.0,1.46474545]
[1724414846745,0.02592923,60959.0,60958.0,1.53084545]
[1724414847247,0.02592923,60959.0,60958.0,1.35298425]
[1724414847248,0.10482923,60959.0,60958.0,1.35298425]
[1724414847806,0.02592923,60959.0,60958.0,1.35298425]
[1724414848219,0.02592923,60959.0,60958.0,1.41808425]
[1724414849055,0.02592923,60959.0,60958.0,1.52984545]
[1724414850683,0.02362691,60959.0,60958.0,1.52984545]
[1724414852283,0.02362691,60959.0,60958.0,1.85793945]
[1724414852607,0.02362691,60959.0,60958.0,1.95793945]
[1724414853356,4e-05,60959.0,60958.0,2.03723945]
[1724414853794,4e-05,60959.0,60958.0,1.70914545]
[1724414854180,4e-05,60959.0,60958.0,1.62984545]
[1724414854870,0.02576592,60959.0,60958.0,1.62984545]
[1724414856383,0.02576592,60959.0,60958.0,1.70834545]
[1724414858843,0.02576592,60959.0,60958.0,1.51808425]
[1724414859047,0.02576592,60959.0,60958.0,1.62984545]
[1724414861643,0.10196592,60959.0,60958.0,1.56474545]
[1724414861846,0.10196592,60959.0,60958.0,0.04065227]
[1724414861847,0.10746592,60959.0,60958.0,0.04065227]
[1724414862060,0.27150992,60959.0,60958.0,0.04065227]
[1724414862271,0.27150992,60959.0,60958.0,0.01947854]
[1724414862272,0.59959892,60959.0,60958.0,0.01947854]
[1724414862522,0.67326242,60959.0,60958.0,0.01947854]
[1724414862725,1.4247799,60959.0,60958.0,0.006]
[1724414862927,1.57210691,60959.0,60958.0,0.006]
[1724414863130,1.45020073,60959.0,60958.0,0.006]
[1724414863344,1.61417951,60959.0,60958.0,0.006]
[1724414863778,0.573905,60950.0,60949.0,0.00645992]
[1724414863988,0.64767238,60950.0,60949.0,0.00645992]
[1724414864194,0.164072,60949.0,60944.0,0.164082]
[1724414864406,0.164072,60949.0,60941.0,0.328185]
[1724414864407,0.0762,60948.0,60941.0,0.328185]
[1724414864612,0.0762,60948.0,60945.0,0.02128415]
[1724414865034,0.0762,60948.0,60943.0,0.328173]
[1724414865240,0.0762,60948.0,60946.0,0.02127565]
[1724414865374,0.0762,60948.0,60942.0,0.1]
[1724414865586,0.0762,60948.0,60947.0,0.02126716]
[1724414865814,0.0762,60948.0,60943.0,0.328174]
[1724414866013,0.0762,60948.0,60947.0,0.02126716]
[1724414866216,0.0762,60948.0,60947.0,0.164076]
[1724414866428,0.0762,60948.0,60947.0,0.492229]
[1724414866628,0.0762,60948.0,60947.0,0.98438498]
[1724414867285,0.0762,60948.0,60947.0,1.00565214]
[1724414868587,0.0762,60948.0,60947.0,1.00765214]
[1724414870653,0.0762,60948.0,60947.0,1.33580514]
[1724414871113,0.02573307,60950.0,60949.0,0.820357]
[1724414871758,0.02573307,60950.0,60949.0,0.84160717]
[1724414874037,0.02573307,60950.0,60949.0,0.84795761]
[1724414874241,0.02773307,60950.0,60949.0,0.84795761]
[1724414875039,0.02573307,60950.0,60949.0,0.84795761]
[1724414875261,0.02573307,60950.0,60949.0,1.40670359]
[1724414875466,0.02573307,60950.0,60949.0,1.41070359]
[1724414877722,0.10173307,60950.0,60949.0,1.01596059]
[1724414877929,0.10173307,60950.0,60949.0,1.34410359]
[1724414878924,0.10173307,60950.0,60949.0,0.85195761]
[1724414879532,0.10177307,60950.0,60949.0,0.85195761]
[1724414881516,0.02577307,60950.0,60949.0,0.85195761]
[1724414881706,0.02577307,60950.0,60949.0,1.01596059]
[1724414881907,0.02577307,60950.0,60949.0,1.40440359]
[1724414884116,0.10827307,60950.0,60949.0,0.85195761]
[1724414884318,0.10827307,60950.0,60949.0,0.52381461]
[1724414886880,0.10277307,60950.0,60949.0,0.52381461]
[1724414887312,0.10277307,60950.0,60949.0,0.19567161]
[1724414887536,0.10277307,60950.0,60949.0,0.52381461]
[1724414890226,0.10277307,60950.0,60949.0,0.19567161]
[1724414890439,0.10277307,60950.0,60949.0,0.52381461]
[1724414891468,0.59497807,60950.0,60949.0,0.03160061]
[1724414891629,0.10277307,60950.0,60949.0,0.03160061]
[1724414891829,0.26684107,60950.0,60949.0,0.03160061]
[1724414892318,0.26684107,60950.0,60949.0,0.02860061]
[1724414892518,0.10277307,60950.0,60949.0,0.02860061]
[1724414892729,0.10277307,60950.0,60949.0,0.02760061]
[1724414892925,0.10277307,60950.0,60949.0,0.19167161]
[1724414893134,0.10477307,60950.0,60949.0,0.19167161]
[1724414893335,0.10477307,60950.0,60949.0,0.51981461]
[1724414893656,0.10477307,60950.0,60949.0,0.19167161]
[1724414895453,0.10477307,60950.0,60949.0,0.51981461]
[1724414896277,0.10477307,60950.0,60949.0,0.02760061]
[1724414896915,0.10477307,60950.0,60949.0,0.19167161]
[1724414897965,0.11027307,60950.0,60949.0,0.02760061]
[1724414898375,0.11027307,60950.0,60949.0,0.19167161]
[1724414899013,0.10477307,60950.0,60949.0,0.19167161]
[1724414903197,0.02777307,60950.0,60949.0,1.48580359]
[1724414904084,0.02777307,60950.0,60949.0,1.15766059]
[1724414904523,0.02577307,60950.0,60949.0,1.15766059]
[1724414905365,0.02577307,60950.0,60949.0,1.48580359]
[1724414905578,0.02777307,60950.0,60949.0,1.48580359]
[1724414906031,0.02577307,60950.0,60949.0,1.48580359]
[1724414906242,0.02577307,60950.0,60949.0,1.48680359]
[1724414907152,0.02577307,60950.0,60949.0,1.49280359]
[1724414908014,0.02577307,60950.0,60949.0,1.49180359]
[1724414908224,0.02577307,60950.0,60949.0,1.40860359]
[1724414908430,0.02577307,60950.0,60949.0,1.41260359]
[1724414911179,0.02581307,60950.0,60949.0,1.41260359]
[1724414916322,0.02581307,60950.0,60949.0,0.85795761]
[1724414916323,0.10401307,60950.0,60949.0,0.85795761]
[1724414917056,0.10401307,60950.0,60949.0,0.85195761]
[1724414917324,0.10401307,60950.0,60949.0,0.85495761]
[1724414918072,0.10401307,60950.0,60949.0,0.85095761]
[1724414918546,0.15325234,60950.0,60949.0,0.85195761]
[1724414919985,0.15325234,60950.0,60949.0,0.52381461]
[1724414921248,0.15325234,60950.0,60949.0,0.85195761]
[1724414921249,0.07505234,60950.0,60949.0,0.85195761]
[1724414921456,0.02581307,60950.0,60949.0,1.15396059]
[1724414922594,0.02581307,60950.0,60949.0,1.48210359]
[1724414936310,0.02581307,60950.0,60949.0,1.58210359]
[1724414937821,0.10891307,60950.0,60949.0,0.19567161]
[1724414938256,0.10891307,60950.0,60949.0,0.52381461]
[1724414939305,0.10891307,60950.0,60949.0,0.19567161]
[1724414939506,0.10891307,60950.0,60949.0,0.52381461]
[1724414942367,0.10891307,60950.0,60949.0,0.19567161]
[1724414946335,0.10891307,60950.0,60949.0,0.03160061]
[1724414949043,0.15811327,60950.0,60949.0,0.03160061]
[1724414951495,0.10891307,60950.0,60949.0,0.03160061]